bitfinex-derivatives/quotes_SOLF0:USTF0_20241021
["timestamp","ask_amount","ask_price","bid_price","bid_amount"]
[1729494785957,4.46,169.44,169.43,2.9518]
[1729494787060,2.5266,169.48,169.37,4.23934436]
[1729494787255,4.46,169.47,169.38,1.47674907]
[1729494787452,4.46,169.47,169.39,1.47674907]
[1729494787656,4.46,169.47,169.4,1.47674907]
[1729494787958,4.46,169.47,169.37,4.23934436]
[1729494788154,4.46,169.47,169.38,1.47672441]
[1729494788356,4.46,169.47,169.39,1.47672441]
[1729494788550,4.46,169.47,169.4,1.47672441]
[1729494788752,4.46,169.47,169.41,1.47672441]
[1729494788950,4.46,169.47,169.37,4.23934436]
[1729494789152,4.46,169.47,169.38,1.47688024]
[1729494789352,4.46,169.47,169.39,1.47688024]
[1729494789551,4.46,169.47,169.37,4.23934436]
[1729494789552,4.46,169.47,169.41,2.9521]
[1729494790058,0.1,169.42,169.41,2.9521]
[1729494795455,4.46,169.43,169.41,2.9521]
[1729494796763,4.46,169.43,169.42,2.9519]
[1729494798758,2.9514,169.45,169.42,2.9519]
[1729494798967,4.46,169.43,169.42,2.9519]
[1729494799454,4.46,169.43,169.41,2.9521]
[1729494801360,4.46,169.43,169.35,2.88259574]
[1729494801562,2.9521,169.42,169.38,2.9526]
[1729494802754,7.4118,169.43,169.39,2.9524]
[1729494803757,2.5266,169.48,169.32,3.8843]
[1729494803958,4.46,169.47,169.42,2.9518]
[1729494804358,4.46,169.47,169.36,2.96746214]
[1729494804563,4.46,169.47,169.37,1.47703605]
[1729494804752,4.46,169.47,169.38,1.47703605]
[1729494805068,0.1,169.42,169.39,1.47703605]
[1729494805365,0.1,169.42,169.32,3.8843]
[1729494805564,0.1,169.42,169.41,2.9521]
[1729494807061,0.1,169.42,169.36,2.96268138]
[1729494807266,0.1,169.42,169.37,1.4770444]
[1729494807468,0.1,169.42,169.38,1.4770444]
[1729494807667,0.1,169.42,169.32,3.8843]
[1729494807860,0.1,169.42,169.4,2.9521]
[1729494809166,0.1,169.42,169.41,2.9521]
[1729494809568,0.1,169.42,169.36,2.97272336]
[1729494809869,0.1,169.42,169.37,1.47711286]
[1729494810172,0.1,169.42,169.36,2.9359795]
[1729494810373,0.1,169.42,169.37,1.47710395]
[1729494810562,4.46,169.43,169.32,3.8843]
[1729494810763,2.5598,169.42,169.33,1.47726147]
[1729494810964,2.5598,169.42,169.34,1.47726147]
[1729494811263,2.9524,169.4,169.36,2.9529]
[1729494811464,4.46,169.39,169.36,2.9529]
[1729494812070,2.9526,169.38,169.34,2.9533]
[1729494813972,2.9528,169.37,169.33,2.9535]
[1729494814465,2.9528,169.37,169.32,2.9535]
[1729494814672,4.46,169.39,169.28,1.3013]
[1729494814971,4.46,169.38,169.37,2.9528]
[1729494815871,4.46,169.38,169.36,2.953]
[1729494818774,2.9519,169.43,169.38,2.9526]
[1729494818971,4.46,169.42,169.29,4.46]
[1729494819167,4.46,169.42,169.3,1.47717458]
[1729494819365,4.46,169.42,169.34,2.9533]
[1729494819578,4.46,169.42,169.35,5.36937458]
[1729494819772,4.46,169.42,169.36,1.47717458]
[1729494819973,4.46,169.42,169.39,2.9523]
[1729494823566,4.46,169.42,169.35,2.639]
[1729494823567,4.46,169.42,169.4,2.9522]
[1729494823771,4.46,169.42,169.35,2.639]
[1729494824975,4.46,169.42,169.36,1.47714826]
[1729494825178,4.46,169.42,169.41,2.9521]
[1729494827775,2.9512,169.46,169.42,2.9518]
[1729494827776,4.46,169.45,169.42,2.9518]
[1729494828380,2.9516,169.45,169.35,5.52852578]
[1729494828579,4.46,169.44,169.35,5.52852578]
[1729494828882,4.46,169.44,169.36,1.47705372]
[1729494829178,2.9518,169.43,169.39,2.9524]
[1729494831479,4.46,169.44,169.39,2.9524]
[1729494831680,22.18,169.44,169.35,1.3247]
[1729494831981,22.18,169.44,169.27,8.1284]
[1729494832181,2.9529,169.37,169.32,2.9536]
[1729494832383,4.46,169.36,169.27,3.6684]
[1729494832580,4.46,169.35,169.28,1.47757707]
[1729494832779,4.46,169.35,169.31,2.9538]
[1729494835875,2.9531,169.36,169.31,2.9538]
[1729494836075,4.46,169.35,169.31,2.9538]
[1729494839482,4.46,169.35,169.27,3.6684]
[1729494839684,4.46,169.35,169.29,2.9541]
[1729494840389,2.9535,169.34,169.29,2.9541]
[1729494841188,4.46,169.35,169.33,2.9535]
[1729494841393,4.46,169.35,169.28,1.4777118]
[1729494841691,4.46,169.35,169.27,3.6684]
[1729494841988,2.9531,169.36,169.31,2.9537]
[1729494842292,4.46,169.35,169.31,2.9537]
[1729494843086,4.46,169.36,169.35,2.953]
[1729494843685,2.9525,169.39,169.35,2.953]
[1729494843993,4.46,169.38,169.28,1.4775334]
[1729494844196,4.46,169.38,169.29,1.4775334]
[1729494844383,4.46,169.38,169.37,2.9528]
[1729494844792,63.82,169.42,169.31,4.46]
[1729494844985,4.46,169.41,169.32,5.93743922]
[1729494845192,4.46,169.41,169.33,1.47743922]
[1729494845390,4.46,169.41,169.32,4.46]
[1729494845585,4.46,169.45,169.33,1.47714964]
[1729494845784,4.46,169.45,169.32,4.46]
[1729494845991,4.46,169.45,169.33,1.47707541]
[1729494846288,4.46,169.45,169.34,1.47707541]
[1729494846590,4.46,169.45,169.32,4.46]
[1729494846591,4.46,169.45,169.35,2.71447541]
[1729494846787,4.46,169.45,169.36,4.07607541]
[1729494846989,4.46,169.45,169.36,2.599]
[1729494847385,4.46,169.45,169.42,2.9518]
[1729494847991,4.46,169.45,169.36,2.599]
[1729494848189,4.46,169.45,169.31,4.46]
[1729494848390,4.46,169.45,169.32,1.47724529]
[1729494848391,2.9523,169.41,169.32,1.47724529]
[1729494848597,4.46,169.4,169.33,1.47724529]
[1729494848787,4.46,169.4,169.36,2.9528]
[1729494850596,4.46,169.4,169.31,4.46]
[1729494850797,4.46,169.4,169.32,1.47731839]
[1729494851095,4.46,169.4,169.33,1.47731839]
[1729494851295,4.46,169.4,169.34,1.2864]
[1729494851495,4.46,169.4,169.39,2.9525]
[1729494855190,4.46,169.43,169.35,5.54363038]
[1729494855395,4.46,169.43,169.4,2.9522]
[1729494856097,4.46,169.43,169.35,5.54363038]
[1729494856292,4.46,169.43,169.42,2.9519]
[1729494856897,4.46,169.43,169.35,4.29163038]
[1729494857098,4.46,169.43,169.39,2.9523]
[1729494858391,4.46,169.43,169.4,2.9522]
[1729494858604,4.46,169.43,169.35,4.29163038]
[1729494859093,4.46,169.43,169.4,2.9523]
[1729494859799,7.4118,169.43,169.4,2.9523]
[1729494860499,4.46,169.43,169.4,2.9523]
[1729494861898,4.46,169.43,169.42,2.9519]
[1729494862299,4.46,169.43,169.37,1.47704802]
[1729494862501,4.46,169.43,169.4,2.9522]
[1729494862704,4.46,169.43,169.35,4.46]
[1729494862903,4.46,169.43,169.36,1.47703958]
[1729494863102,4.46,169.43,169.35,4.46]
[1729494863103,4.46,169.43,169.41,2.9521]
[1729494864102,7.4118,169.43,169.38,2.9526]
[1729494864302,7.4118,169.43,169.36,2.99327945]
[1729494866006,7.4118,169.43,169.4,2.9523]
[1729494867903,7.4118,169.43,169.33,5.4802]
[1729494867904,2.9528,169.37,169.33,5.4802]
[1729494868211,4.46,169.39,169.34,1.4772544]
[1729494868410,4.46,169.39,169.33,2.5267]
[1729494869009,4.46,169.39,169.37,2.9528]
[1729494870206,4.46,169.39,169.38,2.9526]
[1729494871300,4.46,169.39,169.33,2.5267]
[1729494871503,4.46,169.39,169.37,2.9528]
[1729494873402,7.4125,169.39,169.33,2.5267]
[1729494873606,4.46,169.39,169.34,1.47728763]
[1729494873810,4.46,169.39,169.33,2.5267]
[1729494874010,4.46,169.39,169.34,1.47730353]
[1729494874210,4.46,169.39,169.33,2.5267]
[1729494874409,4.46,169.39,169.34,1.47728395]
[1729494874615,4.46,169.39,169.35,1.47728395]
[1729494874801,4.46,169.39,169.33,2.5267]
[1729494875007,1.2215,169.46,169.34,1.47728363]
[1729494875208,4.46,169.45,169.35,1.47728363]
[1729494875407,4.46,169.45,169.36,4.41626833]
[1729494875608,4.46,169.45,169.33,6.9867]
[1729494875803,4.46,169.45,169.34,1.47724474]
[1729494876109,2.9517,169.44,169.4,2.9522]
[1729494876507,1.2457,169.48,169.43,2.9516]
[1729494876508,4.46,169.45,169.43,2.9516]
[1729494876914,4.46,169.45,169.36,3.01903142]
[1729494877210,2.9518,169.43,169.39,2.9524]
[1729494878505,4.46,169.45,169.4,2.9523]
[1729494878709,2.9516,169.44,169.4,2.9523]
[1729494882320,7.4114,169.45,169.41,2.952]
[1729494892533,4.46,169.45,169.36,2.88310644]
[1729494892730,4.46,169.44,169.37,1.47713883]
[1729494892931,1.2457,169.48,169.33,6.9867]
[1729494892932,4.46,169.45,169.38,1.3176]
[1729494893128,4.46,169.45,169.39,1.47705295]
[1729494893333,4.46,169.45,169.38,1.3176]
[1729494893639,4.46,169.45,169.39,1.47700607]
[1729494893829,4.46,169.45,169.41,2.952]
[1729494898241,7.4114,169.45,169.38,4.20201992]
[1729494898440,7.4114,169.45,169.39,1.47701917]
[1729494898642,7.4114,169.45,169.38,4.20201992]
[1729494898839,7.4114,169.45,169.39,1.4770193]
[1729494899138,7.4114,169.45,169.41,2.952]
[1729494899743,7.4114,169.45,169.42,2.9519]
[1729494900135,4.46,169.45,169.42,2.9519]
[1729494900839,4.46,169.45,169.38,4.20201992]
[1729494901036,4.46,169.45,169.39,1.47702944]
[1729494901338,4.46,169.45,169.38,1.3176]
[1729494901539,2.9516,169.44,169.4,2.9522]
[1729494903042,4.46,169.45,169.37,2.9527]
[1729494903347,2.952,169.42,169.33,6.9867]
[1729494903537,4.46,169.41,169.34,1.47724874]
[1729494903745,4.46,169.41,169.35,4.45528845]
[1729494903942,4.46,169.41,169.35,2.97803971]
[1729494904142,4.46,169.41,169.35,2.9531]
[1729494904338,4.46,169.41,169.35,2.92369484]
[1729494904542,4.46,169.41,169.33,6.9867]
[1729494904740,4.46,169.41,169.38,2.9525]
[1729494905446,4.46,169.41,169.35,2.90095269]
[1729494905643,4.46,169.41,169.33,6.9867]
[1729494905837,4.46,169.41,169.34,1.4772832]
[1729494906043,4.46,169.41,169.38,2.9525]
[1729494907034,4.46,169.41,169.36,2.9529]
[1729494907035,2.9523,169.4,169.36,2.9529]
[1729494907238,4.46,169.41,169.33,2.5267]
[1729494907442,4.46,169.41,169.34,1.47736274]
[1729494907643,7.4122,169.41,169.37,2.9527]
[1729494908943,2.9523,169.4,169.36,2.953]
[1729494909149,4.46,169.41,169.33,2.5267]
[1729494909343,4.46,169.41,169.34,1.47743117]
[1729494909544,2.9526,169.39,169.35,2.953]
[1729494911951,2.9526,169.39,169.34,2.9533]
[1729494912547,2.9519,169.43,169.39,2.9524]
[1729494912750,2.9519,169.43,169.33,1.2406]
[1729494912751,4.46,169.42,169.33,1.2406]
[1729494912947,4.46,169.42,169.34,1.47730108]
[1729494913146,4.46,169.42,169.35,1.47730108]
[1729494913348,7.4121,169.42,169.37,2.9527]
[1729494914144,4.46,169.42,169.39,2.9524]
[1729494914351,2.9517,169.44,169.39,2.9524]
[1729494914555,4.46,169.43,169.39,2.9524]
[1729494915150,4.46,169.43,169.4,2.9522]
[1729494915854,2.5097,169.48,169.41,2.9521]
[1729494916058,4.46,169.47,169.41,2.9521]
[1729494916451,7.4114,169.46,169.39,2.9523]
[1729494916657,4.46,169.46,169.4,1.47702868]
[1729494916850,4.46,169.46,169.37,2.92611073]
[1729494917054,4.46,169.46,169.43,2.9517]
[1729494918055,1.2552,169.5,169.39,1.236]
[1729494918255,7.4108,169.49,169.4,1.47697768]
[1729494918463,7.4108,169.49,169.41,1.47697768]
[1729494918660,7.4108,169.49,169.42,1.47697768]
[1729494918861,7.4108,169.49,169.39,1.236]
[1729494919063,7.4108,169.49,169.4,1.47684649]
[1729494919258,7.4108,169.49,169.41,1.47684649]
[1729494919559,2.9509,169.48,169.44,2.9514]
[1729494922263,7.4107,169.49,169.45,2.9513]
[1729494923158,4.46,169.49,169.39,1.236]
[1729494923355,4.46,169.49,169.4,4.42924617]
[1729494923356,2.9518,169.44,169.4,4.42924617]
[1729494923563,2.94692295,169.48,169.39,1.236]
[1729494923564,4.46,169.45,169.39,1.236]
[1729494923864,2.9517,169.44,169.4,2.9521]
[1729494924061,4.46,169.45,169.39,1.236]
[1729494924455,7.4114,169.45,169.41,2.952]
[1729494924661,3.8357,169.5,169.39,1.236]
[1729494924662,4.46,169.46,169.39,1.236]
[1729494924963,4.46,169.46,169.44,2.9514]
[1729494925463,4.46,169.46,169.39,1.236]
[1729494925660,4.46,169.46,169.4,1.47690719]
[1729494925860,4.46,169.46,169.44,2.9515]
[1729494926368,3.8357,169.5,169.39,1.236]
[1729494926566,4.46,169.49,169.46,2.9512]
[1729494926963,2.14981049,171.04,169.39,5.696]
[1729494926964,63.78,169.6,169.39,5.696]
[1729494927157,63.78,169.6,169.4,1.47684079]
[1729494927158,8.72042591,169.56,169.4,1.47684079]
[1729494927360,125.88992021,169.57,169.41,1.47684079]
[1729494927563,4.46,169.55,169.42,1.47684079]
[1729494927864,4.46,169.55,169.43,7.24244079]
[1729494928061,4.46,169.55,169.44,7.16084079]
[1729494928266,4.46,169.55,169.45,1.47684079]
[1729494928458,63.78,169.6,169.46,1.47684079]
[1729494928664,4.46,169.59,169.47,1.47684079]
[1729494928866,4.46,169.59,169.56,2.9494]
[1729494929059,4.46,169.59,169.49,1.47684079]
[1729494929259,4.46,169.59,169.5,1.47605296]
[1729494929464,4.46,169.59,169.51,1.3287]
[1729494930370,4.46,169.59,169.55,2.9496]
[1729494930572,4.46,169.59,169.51,1.3287]
[1729494931067,4.46,169.59,169.57,2.9493]
[1729494932567,2.9486,169.62,169.51,1.3287]
[1729494932764,1.3406,169.67,169.52,5.757]
[1729494932765,4.46,169.61,169.52,5.757]
[1729494932966,4.46,169.62,169.52,5.757]
[1729494933869,4.46,169.62,169.55,2.9497]
[1729494934071,4.46,169.62,169.51,1.3287]
[1729494934273,2.6601,169.61,169.51,1.3287]
[1729494935874,2.9493,169.58,169.54,2.9498]
[1729494936065,4.46,169.57,169.54,2.9498]
[1729494937272,2.9497,169.56,169.51,2.9502]
[1729494937576,4.46,169.57,169.47,2.5378]
[1729494937776,4.46,169.57,169.54,2.9497]
[1729494937972,4.46,169.57,169.47,2.5378]
[1729494938366,4.46,169.57,169.54,2.9498]
[1729494938672,7.4093,169.57,169.47,2.5378]
[1729494939277,4.46,169.57,169.47,2.5378]
[1729494939473,4.46,169.59,169.47,2.5378]
[1729494940170,4.46,169.59,169.47,4.01354796]
[1729494940376,4.46,169.59,169.47,2.5378]
[1729494940569,2.9496,169.56,169.51,2.9503]
[1729494940972,4.46,169.55,169.51,2.9503]
[1729494941278,4.46,169.55,169.52,2.9501]
[1729494943477,4.46,169.55,169.47,2.5378]
[1729494943679,7.4098,169.55,169.5,2.9504]
[1729494943984,4.46,169.55,169.5,2.9504]
[1729494945483,7.4097,169.55,169.5,2.9504]
[1729494946686,2.9499,169.54,169.5,2.9504]
[1729494947182,2.9502,169.52,169.48,2.9509]
[1729494947391,4.44,169.51,169.42,3.9121]
[1729494947577,4.44,169.51,169.38,4.44]
[1729494947779,4.44,169.51,169.38,5.7207]
[1729494947984,2.9511,169.47,169.38,5.7207]
[1729494948182,7.3911,169.47,169.38,5.7207]
[1729494948584,7.3911,169.47,169.43,2.9516]
[1729494949179,7.3911,169.47,169.38,5.7207]
[1729494949485,7.3911,169.47,169.44,2.9516]
[1729494949884,4.44,169.47,169.44,2.9516]
[1729494950184,4.44,169.47,169.45,2.9513]
[1729494951079,4.44,169.47,169.38,5.7207]
[1729494951580,3.855,169.54,169.38,5.7207]
[1729494951780,4.44,169.53,169.38,5.7207]
[1729494952186,4.44,169.52,169.38,5.7207]
[1729494952587,2.9509,169.48,169.44,2.9515]
[1729494952779,4.44,169.48,169.38,5.7207]
[1729494952982,4.44,169.48,169.45,2.9513]
[1729494953177,4.44,169.48,169.38,5.7207]
[1729494953178,4.44,169.48,169.38,1.2807]
[1729494953382,4.44,169.48,169.38,5.7207]
[1729494953784,4.44,169.48,169.46,2.9512]
[1729494955580,4.44,169.48,169.47,2.9511]
[1729494955988,4.44,169.48,169.38,5.7207]
[1729494956183,4.44,169.48,169.46,2.9512]
[1729494956687,4.44,169.48,169.38,5.7207]
[1729494956982,2.9511,169.47,169.43,2.9517]
[1729494957182,4.44,169.48,169.38,5.7207]
[1729494957691,4.44,169.48,169.38,7.19717017]
[1729494957882,3.855,169.54,169.38,7.19717017]
[1729494958184,4.44,169.53,169.39,1.47638974]
[1729494958486,4.44,169.53,169.4,1.47621183]
[1729494958789,4.44,169.53,169.52,2.9502]
[1729494959582,4.44,169.53,169.46,1.3429]
[1729494960180,4.44,169.53,169.5,2.9504]
[1729494962892,2.95,169.54,169.5,2.9504]
[1729494963089,4.44,169.52,169.5,2.9504]
[1729494963389,4.44,169.52,169.41,4.44]
[1729494963588,2.5664,169.51,169.39,4.44]
[1729494963789,20.2864,169.51,169.38,1.2725]
[1729494964689,2.9514,169.46,169.38,1.2725]
[1729494964886,4.44,169.45,169.37,2.6289]
[1729494965991,4.44,169.45,169.42,2.9519]
[1729494970295,2.952,169.42,169.38,2.9526]
[1729494970790,4.44,169.41,169.34,2.92305426]
[1729494970984,4.44,169.41,169.32,5.91669763]
[1729494971190,4.44,169.44,169.32,7.42034589]
[1729494971393,4.44,169.44,169.43,2.9518]
[1729494973891,4.44,169.44,169.41,2.952]
[1729494974695,2.9518,169.43,169.39,2.9524]
[1729494975392,2.9521,169.42,169.37,2.9527]
[1729494975691,2.9521,169.42,169.34,2.9387076]
[1729494976090,2.9521,169.42,169.33,1.237]
[1729494976292,2.5161,169.43,169.33,1.237]
[1729494976491,2.9524,169.4,169.33,1.237]
[1729494976796,4.44,169.39,169.33,1.237]
[1729494977990,4.44,169.42,169.33,1.237]
[1729494978390,1.3491,169.53,169.33,1.237]
[1729494978595,17.72,169.51,169.33,1.237]
[1729494978998,2.9513,169.46,169.42,2.9519]
[1729494979196,4.44,169.45,169.42,2.9519]
[1729494979987,4.44,169.46,169.36,4.44]
[1729494980191,4.44,169.46,169.37,2.6823]
[1729494980596,4.44,169.47,169.44,2.9514]
[1729494980800,4.44,169.47,169.37,2.6823]
[1729494981199,4.44,169.47,169.4,2.9523]
[1729494981402,4.44,169.47,169.37,2.6823]
[1729494981697,4.44,169.47,169.4,2.9523]
[1729494981897,7.3912,169.47,169.37,2.6823]
[1729494982394,7.3912,169.47,169.43,2.9517]
[1729494982900,4.44,169.47,169.37,2.6823]
[1729494983196,2.9513,169.46,169.42,2.9518]
[1729494983395,4.44,169.47,169.37,2.6823]
[1729494983596,2.5745,169.46,169.33,6.9402]
[1729494983796,2.5745,169.46,169.33,8.257]
[1729494983997,2.9518,169.43,169.33,8.257]
[1729494984200,4.44,169.42,169.33,8.257]
[1729494984397,4.44,169.42,169.34,1.47695786]
[1729494984598,4.44,169.42,169.39,2.9523]
[1729494984906,4.44,169.42,169.33,8.257]
[1729494985501,4.44,169.42,169.39,2.9523]
[1729494985703,4.44,169.42,169.33,1.237]
[1729494986800,4.44,169.42,169.37,2.9528]
[1729494987995,2.9521,169.41,169.37,2.9528]
[1729494990009,4.44,169.42,169.33,1.237]
[1729494991102,1.3344,169.46,169.34,4.44]
[1729494991407,4.44,169.45,169.34,4.44]
[1729494995108,4.44,169.45,169.44,2.9516]
[1729494997414,4.44,169.45,169.39,3.02109972]
[1729494997614,4.44,169.45,169.42,2.9518]
[1729494997809,4.44,169.45,169.39,2.91301346]
[1729494998114,4.44,169.45,169.34,4.44]
[1729494998411,4.44,169.45,169.33,5.677]
[1729494999113,2.9519,169.43,169.36,2.9529]
[1729494999310,2.9519,169.43,169.33,5.677]
[1729494999915,2.9519,169.43,169.39,2.9523]
[1729495000717,4.44,169.45,169.33,5.677]
[1729495001514,7.3916,169.45,169.41,2.952]
[1729495005033,2.9516,169.44,169.41,2.952]
[1729495007525,7.3915,169.45,169.41,2.952]
[1729495007928,2.4903,169.46,169.34,1.47698124]
[1729495008134,4.44,169.45,169.35,1.47698124]
[1729495008326,4.44,169.45,169.33,5.677]
[1729495008327,4.44,169.45,169.36,2.82634277]
[1729495008528,4.44,169.45,169.36,1.3495]
[1729495008728,4.44,169.45,169.42,2.9518]
[1729495010430,4.44,169.45,169.33,1.237]
[1729495010636,4.44,169.45,169.34,1.47688708]
[1729495010932,5.7125,169.45,169.33,1.237]
[1729495011334,5.7125,169.45,169.34,1.47712212]
[1729495011530,2.9522,169.41,169.37,2.9527]
[1729495011738,4.44,169.4,169.37,2.9527]
[1729495012135,4.44,169.4,169.33,1.237]
[1729495012337,2.4903,169.46,169.34,1.47711116]
[1729495012338,4.44,169.43,169.34,1.47711116]
[1729495012537,2.4903,169.46,169.35,2.81771116]
[1729495012838,4.44,169.45,169.35,1.3406]
[1729495013942,2.9519,169.42,169.38,2.9526]
[1729495014138,4.44,169.41,169.38,2.9526]
[1729495015929,4.44,169.41,169.33,5.677]
[1729495016134,4.44,169.41,169.39,2.9523]
[1729495018940,4.44,169.41,169.3,8.6649275]
[1729495020943,2.9523,169.4,169.3,8.6649275]
[1729495021845,2.9523,169.4,169.36,2.9529]
[1729495022243,2.9523,169.4,169.3,8.6649275]
[1729495023247,4.44,169.41,169.3,8.6649275]
[1729495024251,7.3923,169.41,169.3,8.6649275]
[1729495025246,2.952,169.42,169.3,8.6649275]
[1729495025447,4.44,169.42,169.3,8.6649275]
[1729495025743,2.9523,169.41,169.37,2.9527]
[1729495026444,4.44,169.42,169.35,2.953]
[1729495027547,2.9523,169.4,169.35,2.953]
[1729495028143,2.9525,169.39,169.35,2.953]
[1729495028343,4.44,169.38,169.35,2.953]
[1729495028743,4.44,169.38,169.3,1.3128]
[1729495028950,2.9532,169.35,169.31,2.9537]
[1729495029156,2.9532,169.35,169.29,2.5464]
[1729495029752,2.953,169.36,169.32,2.9537]
[1729495030744,2.9534,169.34,169.29,4.2352]
[1729495030947,2.9534,169.34,169.25,1.3346]
[1729495030948,7.3934,169.34,169.25,5.7746]
[1729495031345,7.3934,169.34,169.31,2.9538]
[1729495031346,4.44,169.34,169.31,2.9538]
[1729495033150,7.3934,169.34,169.29,2.954]
[1729495033345,4.44,169.34,169.29,2.954]
[1729495034950,4.44,169.34,169.25,1.3346]
[1729495035750,7.3934,169.34,169.27,2.9544]
[1729495035956,7.3934,169.34,169.25,1.3346]
[1729495036349,4.44,169.34,169.25,1.3346]
[1729495036544,2.9535,169.33,169.29,2.954]
[1729495042353,2.9535,169.33,169.3,2.954]
[1729495044957,7.3934,169.34,169.3,2.954]
[1729495046754,4.44,169.34,169.31,2.9538]
[1729495047063,4.44,169.34,169.25,1.3346]
[1729495047256,4.44,169.34,169.27,2.9544]
[1729495047458,4.44,169.34,169.25,1.3346]
[1729495048454,4.44,169.34,169.31,2.9537]
[1729495048652,4.44,169.34,169.25,1.3346]
[1729495048856,4.44,169.34,169.3,2.9542]
[1729495049362,17.73,169.46,169.28,7.43741257]
[1729495049658,17.73,169.46,169.36,2.9532]
[1729495049659,8.3175,169.45,169.36,2.9532]
[1729495049859,17.73,169.44,169.36,2.9532]
[1729495050365,2.9527,169.4,169.36,2.9532]
[1729495050564,4.44,169.39,169.36,2.9532]
[1729495052363,4.44,169.39,169.31,2.97820218]
[1729495052568,4.44,169.39,169.37,2.9529]
[1729495052771,4.44,169.39,169.29,5.55169313]
[1729495052970,4.44,169.39,169.29,2.597]
[1729495053462,4.44,169.39,169.38,2.9529]
[1729495053858,2.5946,169.45,169.33,2.96858018]
[1729495054072,2.5946,169.45,169.41,2.9522]
[1729495054073,4.44,169.44,169.41,2.9522]
[1729495054269,17.73,169.49,169.33,1.3227]
[1729495054478,4.44,169.48,169.45,2.9517]
[1729495054670,17.73,169.49,169.36,4.44]
[1729495054671,17.73,169.49,169.42,2.90530199]
[1729495054967,4.44,169.49,169.37,4.01956233]
[1729495055169,4.44,169.49,169.46,2.9515]
[1729495055667,2.6459,169.51,169.37,2.5427]
[1729495055864,2.9514,169.47,169.38,1.47687033]
[1729495056070,2.9514,169.47,169.37,6.9827]
[1729495056872,2.9514,169.47,169.42,2.9521]
[1729495057069,2.9514,169.47,169.37,6.9827]
[1729495057866,2.9514,169.47,169.4,2.9526]
[1729495058075,22.17,169.48,169.37,2.5427]
[1729495058267,22.17,169.48,169.33,5.7627]
[1729495058467,1.2918,169.47,169.33,7.0681]
[1729495058673,2.9522,169.43,169.33,7.0681]
[1729495058871,4.44,169.42,169.33,7.0681]
[1729495059068,4.44,169.42,169.33,2.6281]
[1729495059867,2.9525,169.41,169.36,2.9531]
[1729495062075,4.44,169.42,169.33,2.6281]
[1729495062275,7.3923,169.42,169.33,2.6281]
[1729495063370,4.44,169.42,169.36,2.9531]
[1729495063571,2.9525,169.41,169.36,2.9531]
[1729495064166,2.9528,169.39,169.33,1.3054]
[1729495064473,4.44,169.38,169.29,1.2764]
[1729495064677,4.44,169.37,169.29,1.2764]
[1729495064974,4.44,169.36,169.31,2.954]
[1729495065370,4.44,169.36,169.32,2.9539]
[1729495065574,7.3933,169.36,169.32,2.9539]
[1729495066472,2.9538,169.34,169.29,2.9544]
[1729495066868,4.44,169.36,169.26,2.955]
[1729495066869,2.9543,169.31,169.26,2.955]